bitfinex-derivatives/quotes_BTCF0:USTF0_20240905
["timestamp","ask_amount","ask_price","bid_price","bid_amount"]
[1725497461857,0.27,58208.0,58205.0,2.79944161]
[1725497462548,0.002,58211.0,58205.0,2.79944161]
[1725497462549,0.272,58211.0,58205.0,2.79944161]
[1725497462761,0.492,58211.0,58205.0,2.79944161]
[1725497463150,0.492,58211.0,58205.0,2.80044161]
[1725497463151,0.005,58208.0,58205.0,2.80044161]
[1725497463861,0.275,58211.0,58205.0,2.80044161]
[1725497464163,0.515,58211.0,58205.0,2.80044161]
[1725497464463,0.005,58208.0,58205.0,2.80044161]
[1725497464763,0.005,58208.0,58205.0,2.80144161]
[1725497465459,0.005,58208.0,58205.0,2.80044161]
[1725497465666,0.009,58208.0,58205.0,2.80144161]
[1725497466460,0.004,58208.0,58205.0,2.80044161]
[1725497466663,0.004,58208.0,58205.0,2.80144161]
[1725497467164,0.01,58208.0,58205.0,2.80144161]
[1725497467766,0.6408,58208.0,58205.0,0.002]
[1725497467975,0.3591,58207.0,58205.0,0.002]
[1725497468165,1.13681144,58207.0,58200.0,6.36386168]
[1725497468479,0.27,58201.0,58200.0,6.36386168]
[1725497468767,0.33868364,58201.0,58200.0,6.36386168]
[1725497470073,0.33,58201.0,58200.0,6.35586168]
[1725497470466,0.33858904,58201.0,58200.0,6.35686168]
[1725497470968,0.35058904,58201.0,58200.0,6.35786168]
[1725497471276,0.38133315,58201.0,58200.0,6.35786168]
[1725497472974,0.37274411,58201.0,58200.0,6.34786168]
[1725497473476,0.38155417,58201.0,58200.0,6.34786168]
[1725497475167,0.37274411,58201.0,58200.0,6.33986168]
[1725497475367,1.07707522,58201.0,58200.0,5.78086168]
[1725497475668,1.08554386,58201.0,58200.0,5.78086168]
[1725497476073,1.07707522,58201.0,58200.0,5.77286168]
[1725497476278,1.07707522,58201.0,58200.0,5.17486168]
[1725497476279,1.19735322,58201.0,58200.0,5.17486168]
[1725497476474,1.19735322,58201.0,58200.0,4.61016168]
[1725497476875,1.20589496,58201.0,58200.0,4.61016168]
[1725497477468,1.20635322,58201.0,58200.0,4.61016168]
[1725497477774,1.20635322,58201.0,58200.0,4.60216168]
[1725497477978,1.21484969,58201.0,58200.0,4.60216168]
[1725497478278,1.19384969,58201.0,58200.0,4.60016168]
[1725497478476,1.22184969,58201.0,58200.0,4.60216168]
[1725497479072,1.22184969,58201.0,58200.0,4.60116168]
[1725497479672,0.95184969,58201.0,58200.0,4.60116168]
[1725497479877,1.22184969,58201.0,58200.0,4.60116168]
[1725497481575,1.16171069,58201.0,58200.0,4.60116168]
[1725497482772,0.58613169,58201.0,58200.0,4.60116168]
[1725497484572,0.55813169,58201.0,58200.0,4.60016168]
[1725497484789,0.58613169,58201.0,58200.0,4.60216168]
[1725497485480,1.10157169,58201.0,58200.0,4.60216168]
[1725497486371,0.64627069,58201.0,58200.0,4.60216168]
[1725497486576,1.16171069,58201.0,58200.0,4.01216168]
[1725497487699,1.31946002,58201.0,58200.0,3.99416168]
[1725497487987,1.32796094,58201.0,58200.0,3.59294552]
[1725497489881,1.32796094,58201.0,58200.0,3.23365097]
[1725497491780,1.26782194,58201.0,58200.0,3.23365097]
[1725497492583,1.25932102,58201.0,58200.0,3.22565097]
[1725497493188,1.26799147,58201.0,58200.0,3.22565097]
[1725497494082,1.25932102,58201.0,58200.0,3.21565097]
[1725497494395,1.26808782,58201.0,58200.0,3.21565097]
[1725497495078,1.16198102,58201.0,58200.0,3.21565097]
[1725497495278,1.88358102,58201.0,58200.0,3.21565097]
[1725497496684,1.87481422,58201.0,58200.0,3.20050376]
[1725497497191,1.88360534,58201.0,58200.0,2.61050376]
[1725497497988,1.87481422,58201.0,58200.0,2.60250376]
[1725497498377,1.88356146,58201.0,58200.0,2.60250376]
[1725497499993,1.16196146,58201.0,58200.0,2.60250376]
[1725497500185,1.88356146,58201.0,58200.0,2.60250376]
[1725497500896,1.87481422,58201.0,58200.0,2.59650376]
[1725497501096,1.94353871,58201.0,58200.0,1.97620536]
[1725497501987,1.94353871,58201.0,58200.0,1.03397909]
[1725497501988,1.99509222,58201.0,58200.0,1.03397909]
[1725497502183,2.00364827,58201.0,58200.0,1.01332401]
[1725497502383,2.10119902,58201.0,58200.0,0.52082267]
[1725497502599,2.26296821,58201.0,58200.0,0.16799]
[1725497502781,0.06016,58181.0,58180.0,0.3799]
[1725497502989,1.28176,58181.0,58180.0,0.3799]
[1725497503191,1.48096155,58181.0,58180.0,0.3799]
[1725497503583,0.060163,58178.0,58165.0,3.17489907]
[1725497503784,0.27,58167.0,58166.0,0.7772]
[1725497503985,0.51,58167.0,58166.0,3.56859907]
[1725497504697,0.24,58167.0,58166.0,3.56859907]
[1725497505086,0.25,58167.0,58166.0,3.56959907]
[1725497506502,0.257,58167.0,58166.0,3.56959907]
[1725497510292,0.3631068,58167.0,58166.0,3.56959907]
[1725497510795,0.3631068,58167.0,58166.0,3.56159907]
[1725497511095,0.37185438,58167.0,58166.0,3.56159907]
[1725497512294,0.3631068,58167.0,58166.0,3.55359907]
[1725497512494,0.37162821,58167.0,58166.0,3.55359907]
[1725497514103,0.527,58167.0,58166.0,3.53559907]
[1725497514304,0.6331068,58167.0,58166.0,0.7362]
[1725497514504,0.64169189,58167.0,58166.0,0.43522236]
[1725497514700,0.64169189,58167.0,58166.0,0.3809]
[1725497515395,0.6331068,58167.0,58166.0,0.3809]
[1725497515608,0.6331068,58167.0,58166.0,0.3729]
[1725497515798,0.6261068,58167.0,58166.0,0.3729]
[1725497516005,0.64880292,58167.0,58166.0,0.3729]
[1725497516304,0.6441068,58167.0,58166.0,0.3639]
[1725497516916,0.65270136,58167.0,58166.0,0.3639]
[1725497517207,0.54659456,58167.0,58166.0,0.3639]
[1725497518401,0.538,58167.0,58166.0,0.3559]
[1725497518998,0.54666476,58167.0,58166.0,0.3559]
[1725497519705,0.538,58167.0,58166.0,0.3479]
[1725497519905,0.54641257,58167.0,58166.0,0.3479]
[1725497522102,0.538,58167.0,58166.0,0.3399]
[1725497522497,0.54662831,58167.0,58166.0,0.3399]
[1725497522706,0.538,58167.0,58166.0,0.3319]
[1725497523207,0.54669802,58167.0,58166.0,0.3319]
[1725497523396,0.27669802,58167.0,58166.0,0.3319]
[1725497524213,0.27669802,58167.0,58166.0,3.39329907]
[1725497525310,0.27669802,58167.0,58166.0,4.50905907]
[1725497525711,0.27669802,58167.0,58166.0,3.90905907]
[1725497526115,0.27669802,58167.0,58166.0,4.50905907]
[1725497528211,0.00156001,58171.0,58166.0,1.74913477]
[1725497528416,0.09,58171.0,58170.0,0.6308]
[1725497528602,0.00840219,58171.0,58170.0,0.6308]
[1725497528809,0.060159,58182.0,58170.0,2.60380335]
[1725497528999,0.280159,58182.0,58181.0,0.3608]
[1725497529405,0.28888478,58182.0,58181.0,0.3608]
[1725497529607,0.46467379,58182.0,58181.0,0.35349802]
[1725497529905,0.79474573,58182.0,58181.0,0.35349802]
[1725497530307,0.82174573,58182.0,58181.0,0.35449802]
[1725497531615,0.81301479,58182.0,58181.0,0.34649802]
[1725497531823,0.87317379,58182.0,58181.0,0.34649802]
[1725497532207,1.39763337,58182.0,58181.0,0.34649802]
[1725497532614,1.38881379,58182.0,58181.0,0.33849802]
[1725497532806,1.38881379,58182.0,58181.0,0.33549802]
[1725497533426,1.39756568,58182.0,58181.0,0.33549802]
[1725497534617,1.38881379,58182.0,58181.0,0.32749802]
[1725497535318,1.39754072,58182.0,58181.0,0.32749802]
[1725497535716,1.33738172,58182.0,58181.0,0.32749802]
[1725497536014,0.82174172,58182.0,58181.0,0.32749802]
[1725497538318,0.44024172,58182.0,58181.0,0.32749802]
[1725497538711,0.25572693,58182.0,58181.0,1.78478137]
[1725497540115,0.25572693,58182.0,58181.0,1.45828335]
[1725497541123,0.43842815,58182.0,58181.0,0.001]
[1725497542115,0.49858715,58182.0,58181.0,0.001]
[1725497547220,0.60473846,58182.0,58181.0,0.001]
[1725497547528,0.60473846,58182.0,58167.0,2.08498892]
[1725497547729,0.6308,58176.0,58167.0,2.08498892]
[1725497547922,0.10615131,58175.0,58167.0,2.08498892]
[1725497548126,0.10615131,58174.0,58167.0,2.11635942]
[1725497548317,0.10615131,58173.0,58167.0,2.11635942]
[1725497548522,0.10615131,58172.0,58167.0,2.11635942]
[1725497548721,0.10615131,58171.0,58167.0,2.11635942]
[1725497548924,0.10615131,58171.0,58167.0,2.11835942]
[1725497548925,0.10615131,58170.0,58167.0,2.11835942]
[1725497549221,0.10615131,58169.0,58167.0,2.11835942]
[1725497549426,0.10615131,58168.0,58167.0,2.11735942]
[1725497549615,0.32615131,58168.0,58167.0,2.11835942]
[1725497550125,0.32615131,58168.0,58167.0,2.11735942]
[1725497550425,0.32615131,58168.0,58167.0,2.11835942]
[1725497550728,0.33915131,58168.0,58167.0,2.08698892]
[1725497551026,0.33915131,58168.0,58167.0,1.82008335]
[1725497551927,0.33915131,58168.0,58167.0,1.81908335]
[1725497552133,0.35215131,58168.0,58167.0,1.82008335]
[1725497555634,0.246,58168.0,58167.0,1.82008335]
[1725497555836,0.246,58168.0,58167.0,1.45928335]
[1725497556731,0.246,58168.0,58167.0,1.45028335]
[1725497557333,0.25457342,58168.0,58167.0,1.45028335]
[1725497557634,0.2850009,58168.0,58167.0,1.45028335]
[1725497557835,0.27642748,58168.0,58167.0,1.44228335]
[1725497558330,0.28500348,58168.0,58167.0,1.44228335]
[1725497559437,0.27642748,58168.0,58167.0,1.43428335]
[1725497559937,0.28524885,58168.0,58167.0,1.43428335]
[1725497560622,0.25482137,58168.0,58167.0,1.43428335]
[1725497560823,0.25482137,58168.0,58167.0,1.70428335]
[1725497561036,0.25482137,58168.0,58167.0,2.82004335]
[1725497562335,0.05,58168.0,58167.0,0.45639996]
[1725497562521,0.10615131,58168.0,58167.0,0.68239996]
[1725497562723,0.060158,58183.0,58167.0,1.38576]
[1725497562937,0.060158,58183.0,58180.0,0.3608]
[1725497562938,0.10614906,58182.0,58180.0,0.3608]
[1725497563126,0.13861998,58182.0,58181.0,0.3816]
[1725497563326,0.24476904,58182.0,58181.0,0.3816]
[1725497563529,0.24476904,58182.0,58181.0,0.67933797]
[1725497564138,0.13861998,58182.0,58181.0,0.67933797]
[1725497564328,0.24476904,58182.0,58181.0,0.67933797]
[1725497565032,0.24676904,58182.0,58181.0,0.67933797]
[1725497565240,0.24776904,58182.0,58181.0,0.68033797]
[1725497565634,0.24576904,58182.0,58181.0,0.68033797]
[1725497565931,0.24676904,58182.0,58181.0,0.68133797]
[1725497567644,0.24576904,58182.0,58181.0,0.68033797]
[1725497567846,0.24676904,58182.0,58181.0,0.68133797]
[1725497568328,0.24476904,58182.0,58181.0,0.68033797]
[1725497568525,0.24476904,58182.0,58181.0,0.68133797]
[1725497569456,0.40861998,58182.0,58181.0,0.68133797]
[1725497570229,0.40861998,58182.0,58181.0,0.29973797]
[1725497572937,0.13861998,58182.0,58181.0,0.29973797]
[1725497573935,0.40861998,58182.0,58181.0,0.29973797]
[1725497576534,0.50861998,58182.0,58181.0,0.29973797]
[1725497580048,0.34861998,58182.0,58181.0,0.29973797]
[1725497580349,0.45476753,58182.0,58181.0,0.29973797]
[1725497582340,0.34861998,58182.0,58181.0,0.29973797]
[1725497584256,0.45476753,58182.0,58181.0,0.29973797]
[1725497584853,0.060161,58180.0,58179.0,0.35313204]
[1725497585157,0.5012239,58180.0,58179.0,0.35313204]
[1725497585447,0.4410629,58180.0,58179.0,0.35313204]
[1725497585658,0.25855717,58180.0,58179.0,0.35313204]
[1725497586158,0.26155717,58180.0,58179.0,0.35513204]
[1725497588657,0.26155717,58180.0,58179.0,0.002]
[1725497592358,0.43353209,58180.0,58178.0,0.3448]
[1725497592660,0.11,58179.0,58178.0,0.3448]
[1725497592850,0.36,58179.0,58178.0,0.2868]
[1725497593157,0.5489324,58179.0,58178.0,0.2868]
[1725497593652,0.5489324,58179.0,58178.0,0.2878]
[1725497593960,0.4389324,58179.0,58178.0,0.2878]
[1725497594154,0.5489324,58179.0,58178.0,0.2878]
[1725497595054,0.5489324,58179.0,58178.0,0.2868]
[1725497595361,0.5489324,58179.0,58178.0,0.2888]
[1725497595362,0.5519324,58179.0,58178.0,0.2888]
[1725497595546,0.5519324,58179.0,58178.0,0.002]
[1725497595746,0.5529324,58179.0,58178.0,0.002]
[1725497595950,0.5529324,58179.0,58178.0,0.001]
[1725497596157,0.54953209,58179.0,58176.0,0.00025769]
[1725497596750,0.55796424,58179.0,58176.0,0.00025769]
[1725497596957,0.61812624,58179.0,58176.0,0.00025769]
[1725497597464,0.60969409,58179.0,58175.0,0.35305769]
[1725497597659,0.11,58176.0,58175.0,0.35305769]
[1725497597870,0.35,58176.0,58175.0,0.34305769]
[1725497598046,0.54729932,58176.0,58175.0,0.34305769]
[1725497598251,0.60746432,58176.0,58175.0,0.34305769]
[1725497598560,0.61600145,58176.0,58175.0,0.34305769]
[1725497599475,0.62100145,58176.0,58175.0,0.34405769]
[1725497600154,0.62100145,58176.0,58175.0,0.33405769]
[1725497600155,1.72814432,58176.0,58175.0,0.33405769]
[1725497600358,1.72814432,58176.0,58175.0,0.32405769]
[1725497600561,1.8430245,58176.0,58175.0,0.32405769]
[1725497600759,1.8480245,58176.0,58175.0,0.32505769]
[1725497600959,1.87832197,58176.0,58175.0,0.32505769]
[1725497601347,0.76264197,58176.0,58175.0,0.32505769]
[1725497601859,0.70247697,58176.0,58175.0,0.32505769]
[1725497604160,0.50517765,58176.0,58175.0,0.32505769]
[1725497604360,0.50517765,58176.0,58175.0,0.62279566]
[1725497604558,0.39517765,58176.0,58175.0,0.62279566]
[1725497605462,0.50517765,58176.0,58175.0,0.62279566]
[1725497605667,0.50517765,58176.0,58175.0,0.32505769]
[1725497605668,0.70387075,58176.0,58175.0,0.32505769]
[1725497607456,0.70387075,58176.0,58175.0,0.002]
[1725497607656,0.5977232,58176.0,58175.0,0.002]
[1725497611153,0.6578882,58176.0,58175.0,0.002]
[1725497615771,0.76403575,58176.0,58175.0,0.002]
[1725497618876,1.12483575,58176.0,58175.0,0.002]
[1725497619579,0.060168,58173.0,58165.0,0.68643797]
[1725497619876,0.11,58166.0,58165.0,0.68643797]
[1725497620080,0.45614755,58166.0,58165.0,0.68643797]
[1725497621081,0.35,58166.0,58165.0,0.29873797]
[1725497621268,0.35846678,58166.0,58165.0,0.001]
[1725497621467,0.99974929,58166.0,58155.0,0.3608]
[1725497621663,0.99974929,58166.0,58155.0,0.65853797]
[1725497621664,0.11,58156.0,58155.0,0.65853797]
[1725497621871,0.46459023,58156.0,58155.0,0.65853797]
[1725497622181,0.45614755,58156.0,58155.0,0.65053797]
[1725497622670,0.35,58156.0,58155.0,0.65153797]
[1725497622980,0.35,58156.0,58155.0,0.64353797]
[1725497623176,0.35,58156.0,58155.0,0.64253797]
[1725497623372,0.36479213,58156.0,58155.0,0.64353797]
[1725497623575,0.36479213,58156.0,58155.0,0.29873797]
[1725497623769,0.36979213,58156.0,58155.0,0.29873797]
[1725497623973,0.361,58156.0,58155.0,0.28998797]
[1725497624367,0.36946334,58156.0,58155.0,0.28998797]
[1725497624772,0.367,58156.0,58155.0,0.28098797]
[1725497624975,0.361,58156.0,58155.0,0.27998797]
[1725497625176,0.373,58156.0,58155.0,0.28098797]
[1725497625375,0.38142375,58156.0,58155.0,0.28098797]
[1725497625875,0.74222375,58156.0,58155.0,0.28098797]
[1725497626279,0.77345565,58156.0,58155.0,0.28098797]
[1725497627475,0.7650319,58156.0,58155.0,0.27098797]
[1725497627876,0.77379867,58156.0,58155.0,0.27098797]
[1725497628578,0.41299867,58156.0,58155.0,0.27098797]
[1725497628778,0.4042319,58156.0,58155.0,0.26298797]
[1725497628984,0.7650319,58156.0,58155.0,0.26298797]
[1725497629376,0.77367385,58156.0,58155.0,0.26298797]
[1725497629778,0.7650319,58156.0,58155.0,0.25298797]
[1725497630378,0.7650319,58156.0,58155.0,0.001]
[1725497630584,0.7650319,58156.0,58152.0,0.4295]
[1725497630585,0.94702929,58156.0,58152.0,0.4215]
[1725497630772,0.11,58153.0,58152.0,0.67248797]
[1725497630974,0.34,58153.0,58152.0,0.67248797]
[1725497631589,0.34,58153.0,58152.0,1.03328797]
[1725497631779,0.34,58153.0,58152.0,1.03428797]
[1725497631981,0.23,58153.0,58152.0,1.03428797]
[1725497632485,0.239,58153.0,58152.0,1.03528797]
[1725497633888,0.247,58153.0,58152.0,1.03528797]
[1725497635588,0.247,58153.0,58152.0,0.67448797]
[1725497636588,0.357,58153.0,58152.0,0.67448797]
[1725497637382,0.357,58153.0,58152.0,0.66648797]
[1725497637577,0.46314755,58153.0,58152.0,0.66648797]
[1725497637781,0.46314755,58153.0,58152.0,0.65848797]
[1725497638187,0.47189057,58153.0,58152.0,0.65848797]
[1725497639191,0.47159443,58153.0,58152.0,0.65048797]
[1725497642196,0.46314755,58153.0,58152.0,0.64248797]
[1725497642794,0.47168016,58153.0,58152.0,0.64248797]
[1725497644599,0.36553261,58153.0,58152.0,0.64248797]
[1725497645295,0.357,58153.0,58152.0,0.63448797]
[1725497645697,0.36560838,58153.0,58152.0,0.63448797]
[1725497648603,0.25560838,58153.0,58152.0,0.99528797]
[1725497650699,0.25560838,58153.0,58152.0,0.99278797]
[1725497652106,0.25560838,58153.0,58152.0,0.61378797]
[1725497652408,0.247,58153.0,58152.0,0.002]
[1725497652602,0.35314755,58153.0,58152.0,0.002]
[1725497652800,0.36184022,58153.0,58152.0,0.002]
[1725497653209,0.42202922,58153.0,58152.0,0.002]
[1725497653407,0.40502922,58153.0,58151.0,0.00583103]
[1725497653710,0.31488167,58153.0,58152.0,0.002]
[1725497653907,0.41239203,58153.0,58151.0,0.232819]
[1725497654209,0.10620303,58152.0,58151.0,0.232819]
[1725497654409,0.33620303,58152.0,58151.0,0.232819]
[1725497655608,0.44620303,58152.0,58151.0,0.224819]
[1725497655808,0.46020303,58152.0,58151.0,0.224819]
[1725497656008,0.46889902,58152.0,58151.0,0.224819]
[1725497657012,0.48289902,58152.0,58151.0,0.224819]
[1725497657706,0.47420303,58152.0,58151.0,0.216819]
[1725497658107,0.48288267,58152.0,58151.0,0.216819]
[1725497659716,0.37667964,58152.0,58151.0,0.216819]
[1725497660711,0.368,58152.0,58151.0,0.208819]
[1725497661026,0.37682103,58152.0,58151.0,0.208819]
[1725497663314,0.26682103,58152.0,58151.0,0.208819]
[1725497663521,0.37682103,58152.0,58151.0,0.208819]
[1725497665123,0.368,58152.0,58151.0,0.200819]
[1725497665526,0.3766411,58152.0,58151.0,0.200819]
[1725497667830,0.48284413,58152.0,58151.0,0.200819]
[1725497673119,0.3766411,58152.0,58151.0,0.200819]
[1725497675230,0.3766411,58152.0,58151.0,0.192819]
[1725497675231,0.368,58152.0,58151.0,0.192819]
[1725497675532,0.37669309,58152.0,58151.0,0.192819]
[1725497676440,0.368,58152.0,58151.0,0.16525952]
[1725497676632,0.37668534,58152.0,58151.0,0.16525952]
[1725497679130,0.368,58152.0,58151.0,0.15725952]
[1725497679830,0.37674511,58152.0,58151.0,0.15725952]
[1725497683736,0.368,58152.0,58151.0,0.14925952]
[1725497684236,0.37650489,58152.0,58151.0,0.14925952]
[1725497696243,0.37650489,58152.0,58151.0,0.51005952]
[1725497698948,0.37650489,58152.0,58151.0,0.14925952]
[1725497699844,0.37650489,58152.0,58151.0,0.63845952]
[1725497704952,0.48271071,58152.0,58151.0,0.63845952]
[1725497706750,0.48271071,58152.0,58151.0,0.66944289]
[1725497707753,0.48271071,58152.0,58151.0,0.63845952]
[1725497708954,0.48271071,58152.0,58151.0,0.14925952]
[1725497712945,0.37650489,58152.0,58151.0,0.14925952]
[1725497713949,0.368,58152.0,58151.0,0.14125952]
[1725497714655,0.37651573,58152.0,58151.0,0.14125952]
[1725497716257,0.368,58152.0,58151.0,0.13325952]
[1725497716451,0.368,58152.0,58148.0,0.00277583]
[1725497716452,0.37646666,58152.0,58148.0,0.00277583]
[1725497716750,0.11,58149.0,58148.0,0.13603535]
[1725497717053,0.36,58149.0,58148.0,0.13603535]
[1725497717248,0.36,58149.0,58148.0,0.12803535]
[1725497717448,0.36873614,58149.0,58148.0,0.12803535]
[1725497718060,0.35109289,58149.0,58148.0,0.12803535]
[1725497718252,0.38273614,58149.0,58148.0,0.12803535]
[1725497719160,0.39673614,58149.0,58148.0,0.12803535]
[1725497719655,0.4284156,58149.0,58148.0,0.12803535]
[1725497722060,0.4284156,58149.0,58148.0,0.11858184]
[1725497724064,0.4284156,58149.0,58148.0,0.06476233]
[1725497724753,0.3184156,58149.0,58148.0,0.06476233]
[1725497725361,0.28673614,58149.0,58148.0,0.17476233]
[1725497727558,0.28673614,58149.0,58148.0,1.29068233]
[1725497727856,0.28673614,58149.0,58148.0,0.17476233]
[1725497728260,0.28673614,58149.0,58148.0,1.32098445]
[1725497729857,0.28673614,58149.0,58148.0,0.72098445]
[1725497730357,0.28673614,58149.0,58148.0,1.32098445]
[1725497731260,0.28673614,58149.0,58148.0,0.72098445]
[1725497733660,0.28673614,58149.0,58148.0,0.09506445]
[1725497738666,0.28673614,58149.0,58148.0,0.06476233]
[1725497740765,0.28673614,58149.0,58148.0,0.17476233]
[1725497741866,0.39673614,58149.0,58147.0,0.00096]
[1725497742068,0.28673614,58149.0,58148.0,0.11]
[1725497742463,0.28673614,58149.0,58148.0,0.17476233]
[1725497743061,0.39294196,58149.0,58148.0,0.17476233]
[1725497744473,0.37894196,58149.0,58148.0,0.206023]
[1725497744769,0.39294196,58149.0,58148.0,0.206023]
[1725497746373,0.39294196,58149.0,58148.0,0.10151174]
[1725497748168,0.39294196,58149.0,58148.0,0.096023]
[1725497748368,0.39294196,58149.0,58148.0,0.06476233]
[1725497750067,0.39294196,58149.0,58146.0,0.00575755]
[1725497750068,0.28673614,58149.0,58146.0,0.00575755]
[1725497750265,0.11,58147.0,58146.0,0.00575755]
[1725497750468,0.36,58147.0,58146.0,0.00575755]
[1725497751576,0.36,58147.0,58141.0,0.03294765]
[1725497751577,0.374,58147.0,58141.0,0.00189337]
[1725497751782,0.11,58141.0,58140.0,0.35792545]
[1725497752078,0.36,58141.0,58140.0,0.35792545]
[1725497752665,0.36,58141.0,58140.0,0.34992545]
[1725497753175,0.36843421,58141.0,58140.0,0.34992545]
[1725497753783,0.37543421,58141.0,58140.0,0.34992545]
[1725497754677,0.38243421,58141.0,58140.0,0.34992545]
[1725497755185,0.38343421,58141.0,58140.0,0.34992545]
[1725497755675,0.375,58141.0,58140.0,0.34792545]
[1725497755869,0.375,58141.0,58138.0,0.00300133]
[1725497756070,1.3947,58140.0,58138.0,0.06776366]
[1725497756278,1.6347,58140.0,58139.0,0.3608]
[1725497756669,1.6347,58140.0,58139.0,0.42556233]
[1725497757378,1.6407,58140.0,58139.0,0.42556233]
[1725497757879,1.6397,58140.0,58139.0,0.42556233]
[1725497758174,1.75290582,58140.0,58139.0,0.42556233]
[1725497758380,1.75290582,58140.0,58139.0,0.06476233]
[1725497758580,1.75290582,58140.0,58139.0,0.42556233]
[1725497759981,1.75290582,58140.0,58139.0,0.3608]
[1725497761073,1.74590582,58140.0,58139.0,0.3608]
[1725497761583,1.74090582,58140.0,58139.0,0.3608]
[1725497762481,0.80910582,58140.0,58139.0,0.3608]
[1725497763285,0.34620582,58140.0,58139.0,0.3608]
[1725497764580,0.34620582,58140.0,58139.0,0.53556233]
[1725497764780,0.34620582,58140.0,58139.0,2.02206533]
[1725497765183,0.24,58140.0,58139.0,2.02206533]
[1725497765972,0.24,58140.0,58139.0,1.96186233]
[1725497766773,0.24,58140.0,58139.0,1.60106233]
[1725497766973,0.24,58140.0,58139.0,2.32266233]
[1725497768278,0.24,58140.0,58139.0,3.43866233]
[1725497770587,0.34,58146.0,58139.0,3.3739]
[1725497770778,0.13,58146.0,58145.0,0.4708]
[1725497771183,0.13,58146.0,58145.0,1.58676]
[1725497771384,0.1386029,58146.0,58145.0,1.58676]
[1725497772487,0.1386029,58146.0,58145.0,0.4708]
[1725497773796,0.1386029,58146.0,58145.0,0.3608]
[1725497773978,0.1386029,58146.0,58145.0,0.4708]
[1725497775586,0.1386029,58146.0,58145.0,0.47634601]
[1725497776291,0.1386029,58146.0,58145.0,0.50725792]
[1725497777393,0.1386029,58146.0,58145.0,1.02321792]
[1725497778193,0.1386029,58146.0,58145.0,0.50725792]
[1725497778892,0.1136029,58146.0,58145.0,0.50725792]
[1725497779794,0.1136029,58146.0,58145.0,0.86805792]
[1725497780285,0.21980872,58146.0,58145.0,0.86805792]
[1725497781793,0.21980872,58146.0,58145.0,0.14645792]
[1725497782185,0.21980872,58146.0,58145.0,0.75805792]
[1725497782494,0.39000472,58146.0,58145.0,0.00554601]
[1725497784089,0.32980872,58146.0,58145.0,0.00554601]
[1725497787303,0.36081327,58146.0,58145.0,0.00554601]
[1725497790299,0.25081327,58146.0,58145.0,0.36634601]
[1725497790493,0.1136029,58146.0,58145.0,0.47634601]
[1725497791899,0.1136029,58146.0,58145.0,0.36634601]
[1725497792401,0.2236029,58146.0,58145.0,0.36634601]
[1725497794593,0.1136029,58146.0,58145.0,0.36634601]
[1725497795502,0.21980872,58146.0,58145.0,0.36634601]
[1725497799497,0.21980872,58146.0,58145.0,0.47634601]
[1725497802610,0.1136029,58146.0,58145.0,0.47634601]
[1725497804915,0.1136029,58146.0,58145.0,0.53654301]
[1725497809313,0.1986029,58146.0,58145.0,1.65250301]
[1725497810418,0.1736029,58146.0,58145.0,1.65250301]
[1725497810609,0.1736029,58146.0,58145.0,1.05250301]
[1725497811007,0.1736029,58146.0,58145.0,0.89734301]
[1725497812419,0.1736029,58146.0,58145.0,2.01330301]
[1725497812816,0.1736029,58146.0,58145.0,0.89734301]
[1725497813923,0.00025793,58151.0,58150.0,0.060192]
[1725497814107,0.01269775,58158.0,58150.0,0.4708]
[1725497814312,0.0046,58168.0,58157.0,0.8316]
[1725497814313,0.004,58161.0,58157.0,0.8316]
[1725497814608,0.174,58161.0,58160.0,0.170181]
[1725497815013,0.18266074,58161.0,58160.0,0.170181]
[1725497815513,0.18266074,58161.0,58160.0,0.11]
[1725497816022,0.18266074,58161.0,58160.0,0.8316]
[1725497817615,0.28886656,58161.0,58160.0,0.8316]
[1725497817830,0.28886656,58161.0,58160.0,0.86305174]
[1725497823926,0.28886656,58161.0,58160.0,0.14145174]
[1725497824119,0.28886656,58161.0,58160.0,0.86305174]
[1725497825627,0.18266074,58161.0,58160.0,0.86305174]
[1725497828013,0.29266074,58161.0,58160.0,0.7216]
[1725497828629,1.40846074,58161.0,58155.0,0.00025793]
[1725497828828,0.11,58156.0,58155.0,0.00025793]
[1725497829015,0.28,58156.0,58155.0,0.00025793]
[1725497829216,1.58624414,58156.0,58155.0,0.00025793]
[1725497830525,1.94704414,58156.0,58155.0,0.00025793]
[1725497831934,2.16722914,58156.0,58155.0,0.00025793]
[1725497832719,2.27343496,58156.0,58155.0,0.00025793]
[1725497834023,1.91263496,58156.0,58155.0,0.00025793]
[1725497834227,2.27343496,58156.0,58155.0,0.00025793]
[1725497835937,2.27343496,58156.0,58145.0,0.00554601]
[1725497835938,0.060191,58151.0,58145.0,0.00554601]
[1725497836227,0.27,58146.0,58145.0,0.00554601]
[1725497836532,0.75824774,58146.0,58145.0,0.00554601]
[1725497836726,2.84810374,58146.0,58145.0,0.00554601]
[1725497837323,2.91536003,58146.0,58138.0,0.00300133]
[1725497837528,0.27,58139.0,58138.0,0.00300133]
[1725497837732,0.56620582,58139.0,58138.0,0.00300133]
[1725497838122,0.56620582,58139.0,58137.0,0.35580133]
[1725497838324,0.59440582,58138.0,58137.0,0.35580133]
[1725497838522,0.78440582,58138.0,58137.0,0.35580133]
[1725497840930,0.6782,58138.0,58137.0,0.35580133]
[1725497841435,0.6782,58138.0,58136.0,0.00686649]
[1725497841633,0.6782,58138.0,58137.0,0.3608]
[1725497846554,0.19,58138.0,58137.0,0.3608]
[1725497847857,0.29620582,58138.0,58137.0,0.3608]
[1725497854058,0.40620582,58138.0,58137.0,0.3608]
[1725497856055,0.3,58138.0,58137.0,0.3608]
[1725497856560,0.360204,58138.0,58137.0,0.3528]
[1725497856746,0.060208,58134.0,58133.0,0.00453467]
[1725497856946,0.060208,58134.0,58131.0,0.36875439]
[1725497856947,0.340208,58134.0,58131.0,0.36875439]
[1725497857250,1.445109,58133.0,58131.0,0.36875439]
[1725497857450,1.615109,58133.0,58131.0,0.36875439]
[1725497857659,0.71069664,58132.0,58131.0,0.36875439]
[1725497857959,0.38461664,58132.0,58131.0,0.36875439]
[1725497858161,0.96090664,58132.0,58131.0,0.36075439]
[1725497858460,1.56090664,58132.0,58131.0,0.36075439]
[1725497858658,1.56972382,58132.0,58131.0,0.36075439]
[1725497859547,0.96972382,58132.0,58131.0,0.36075439]
[1725497860168,1.00052955,58132.0,58131.0,0.36075439]
[1725497860856,1.00052955,58132.0,58128.0,0.00250084]
[1725497861058,0.11,58129.0,58127.0,0.00498901]
[1725497861257,0.30840388,58129.0,58127.0,0.00498901]
[1725497861458,0.18599671,58128.0,58127.0,0.00498901]
[1725497861658,0.36599671,58128.0,58127.0,0.00498901]